fUSD/lending_fUSD_20241107
["ID","MTS","AMOUNT","RATE_DAILY","PERIOD"]
[341544906,1730971841026,-500.0,0.0003041,4]
[341544907,1730971841035,-500.0,0.0003041,4]
[341544908,1730971841044,-677.49,0.0003041,4]
[341544909,1730971841053,-500.0,0.0003041,4]
[341544910,1730971841062,-762.06,0.0003041,4]
[341544911,1730971841071,-542.35,0.0003041,4]
[341544912,1730971841080,-500.0,0.0003041,4]
[341544913,1730971841089,-623.63639053,0.0003041,4]
[341544914,1730971841098,-500.0,0.0003041,4]
[341544915,1730971841107,-500.0,0.0003041,4]
[341544916,1730971841117,-500.0,0.0003041,4]
[341544917,1730971841126,-1299.93,0.0003041,4]
[341544918,1730971841135,-500.0,0.0003041,4]
[341544919,1730971841144,-863.42,0.0003041,4]
[341544920,1730971841154,-500.0,0.0003041,4]
[341544921,1730971841163,-500.0,0.0003041,4]
[341544922,1730971841172,-500.0,0.0003041,4]
[341544923,1730971841181,-500.0,0.0003041,4]
[341544924,1730971841190,-500.0,0.0003041,4]
[341544925,1730971841199,-500.0,0.0003041,4]
[341544926,1730971841208,-560.94,0.0003041,4]
[341544927,1730971841217,-572.68,0.0003041,4]
[341544928,1730971841227,-500.0,0.0003041,4]
[341544929,1730971841237,-500.0,0.0003041,4]
[341544930,1730971841246,-500.0,0.0003041,4]
[341544931,1730971841255,-500.0,0.0003041,4]
[341544932,1730971841264,-347.97640879,0.0003041,4]
[341544933,1730971841274,-500.0,0.0003041,4]
[341544934,1730971841283,-1579.56,0.0003041,4]
[341544935,1730971841292,-586.13,0.0003041,4]
[341544936,1730971841301,-500.0,0.0003041,4]
[341544937,1730971841311,-1604.28,0.0003041,4]
[341544938,1730971841320,-500.0,0.0003041,4]
[341544939,1730971841330,-500.0,0.0003041,4]
[341544940,1730971841340,-661.65,0.0003041,4]
[341544941,1730971841349,-607.0,0.0003041,4]
[341544942,1730971841359,-1236.79,0.0003041,4]
[341544943,1730971841369,-500.0,0.0003041,4]
[341544944,1730971841378,-500.0,0.0003041,4]
[341544945,1730971841388,-500.0,0.0003041,4]
[341544946,1730971841398,-500.0,0.0003041,4]
[341544947,1730971841408,-500.0,0.0003041,4]
[341544948,1730971841417,-504.17,0.0003041,4]
[341544949,1730971841427,-500.0,0.0003041,4]
[341544950,1730971841436,-629.84,0.0003041,4]
[341544951,1730971841446,-500.0,0.0003041,4]
[341544952,1730971841455,-500.0,0.0003041,4]
[341544953,1730971841465,-511.56,0.0003041,4]
[341544954,1730971841474,-625.42,0.0003041,4]
[341544955,1730971841484,-500.0,0.0003041,4]
[341544956,1730971841494,-946.32,0.0003041,4]
[341544957,1730971841507,-903.71,0.0003041,4]
[341544958,1730971841517,-500.0,0.0003041,4]
[341544959,1730971841526,-500.0,0.0003041,4]
[341544960,1730971841536,-500.0,0.0003041,4]
[341544961,1730971841546,-500.0,0.0003041,4]
[341544962,1730971841555,-500.0,0.0003041,4]
[341544963,1730971841565,-500.0,0.0003041,4]
[341544964,1730971841576,-500.0,0.0003041,4]
[341544965,1730971841586,-500.0,0.0003041,4]
[341544966,1730971841595,-500.0,0.0003041,4]
[341544967,1730971841604,-500.0,0.0003041,4]
[341544968,1730971841613,-500.0,0.0003041,4]
[341544969,1730971841623,-500.0,0.0003041,4]
[341544970,1730971841631,-500.0,0.0003041,4]
[341544971,1730971841641,-500.0,0.0003041,4]
[341544972,1730971841650,-1193.13,0.0003041,4]
[341544973,1730971841659,-500.0,0.0003041,4]
[341544974,1730971841668,-500.0,0.0003041,4]
[341544975,1730971841677,-576.45,0.0003041,4]
[341544976,1730971841686,-500.0,0.0003041,4]
[341544977,1730971841695,-508.25,0.0003041,4]
[341544978,1730971841705,-5264.54,0.0003041,4]
[341544979,1730971841713,-500.0,0.0003041,4]
[341544980,1730971841723,-1055.85,0.0003041,4]
[341544981,1730971841733,-500.0,0.0003041,4]
[341544982,1730971841746,-776.0,0.0003041,4]
[341544983,1730971841755,-500.0,0.0003041,4]
[341544984,1730971841764,-785.6,0.0003041,4]
[341544985,1730971841773,-500.0,0.0003041,4]
[341544986,1730971841782,-343.56542821,0.0003041,4]
[341544987,1730971841791,-500.0,0.0003041,4]
[341544988,1730971841800,-707.75,0.0003041,4]
[341544989,1730971841809,-649.81,0.0003041,4]
[341544990,1730971841819,-1064.41,0.0003041,4]
[341544991,1730971841828,-500.0,0.0003041,4]
[341544992,1730971841837,-698.7,0.0003041,4]
[341544993,1730971841846,-279.21506856,0.0003041,4]
[341544994,1730971841855,-2120.96,0.0003041,4]
[341544995,1730971841864,-808.65,0.0003041,4]
[341544996,1730971841873,-500.0,0.0003041,4]
[341544997,1730971841883,-886.43,0.0003041,4]
[341544998,1730971841892,-500.0,0.0003041,4]
[341544999,1730971841900,-560.13,0.0003041,4]
[341545000,1730971841910,-1279.72,0.0003041,4]
[341545001,1730971841919,-739.3,0.0003041,4]
[341545002,1730971841928,-500.0,0.0003041,4]
[341545003,1730971841937,-687.25,0.0003041,4]
[341545004,1730971841946,-546.06,0.0003041,4]
[341545005,1730971841955,-4076.65,0.0003041,4]
[341545006,1730971841964,-500.0,0.0003041,4]
[341545007,1730971841974,-500.0,0.0003041,4]
[341545008,1730971841983,-578.17,0.0003041,4]
[341545009,1730971841993,-991.16,0.0003041,4]
[341545010,1730971842002,-608.38,0.0003041,4]
[341545011,1730971842011,-500.0,0.0003041,4]
[341545012,1730971842021,-500.0,0.0003041,4]
[341545013,1730971842030,-500.0,0.0003041,4]
[341545014,1730971842039,-1765.39,0.0003041,4]
[341545015,1730971842048,-904.86,0.0003041,4]
[341545016,1730971842058,-501.48,0.0003041,4]
[341545017,1730971842067,-500.0,0.0003041,4]
[341545018,1730971842076,-500.0,0.0003041,4]
[341545019,1730971842085,-500.0,0.0003041,4]
[341545020,1730971842094,-1306.55,0.0003041,4]
[341545021,1730971842103,-668.92,0.0003041,4]
[341545022,1730971842112,-500.0,0.0003041,4]
[341545023,1730971842122,-500.0,0.0003041,4]
[341545024,1730971842131,-596.14,0.0003041,4]
[341545025,1730971842140,-500.0,0.0003041,4]
[341545026,1730971842149,-500.0,0.0003041,4]
[341545027,1730971842158,-500.0,0.0003041,4]
[341545028,1730971842167,-500.0,0.0003041,4]
[341545029,1730971842177,-501.16,0.0003041,4]
[341545030,1730971842186,-1887.05,0.0003041,4]
[341545031,1730971842195,-2063.62,0.0003041,4]
[341545032,1730971842205,-1469.13,0.0003041,4]
[341545033,1730971842214,-510.45,0.0003041,4]
[341545034,1730971842223,-500.0,0.0003041,4]
[341545035,1730971842233,-500.0,0.0003041,4]
[341545036,1730971842243,-607.63,0.0003041,4]
[341545037,1730971842252,-2550.56,0.0003041,4]
[341545038,1730971842261,-500.0,0.0003041,4]
[341545039,1730971842270,-500.0,0.0003041,4]
[341545040,1730971842279,-888.5,0.0003041,4]
[341545041,1730971842289,-1961.33,0.0003041,4]
[341545042,1730971842298,-500.0,0.0003041,4]
[341545043,1730971842307,-1008.81,0.0003041,4]
[341545044,1730971842317,-500.0,0.0003041,4]
[341545045,1730971842326,-500.0,0.0003041,4]
[341545046,1730971842335,-897.55,0.0003041,4]
[341545047,1730971842344,-586.65,0.0003041,4]
[341545048,1730971842354,-3306.42,0.0003041,4]
[341545049,1730971842363,-820.11,0.0003041,4]
[341545050,1730971842372,-1768.31,0.0003041,4]
[341545051,1730971842382,-500.0,0.0003041,4]
[341545052,1730971842392,-1112.84,0.0003041,4]
[341545053,1730971842401,-500.0,0.0003041,4]
[341545054,1730971842410,-500.0,0.0003041,4]
[341545055,1730971842419,-282.21033126,0.0003041,4]
[341545056,1730971842429,-500.0,0.0003041,4]
[341545057,1730971842439,-954.59,0.0003041,4]
[341545058,1730971842448,-1407.46,0.0003041,4]
[341545059,1730971842457,-3019.45,0.0003041,4]
[341545060,1730971842466,-500.0,0.0003041,4]
[341545061,1730971842475,-500.0,0.0003041,4]
[341545062,1730971842485,-764.04,0.0003041,4]
[341545063,1730971842495,-656.15,0.0003041,4]
[341545064,1730971842504,-500.0,0.0003041,4]
[341545065,1730971842514,-603.18,0.0003041,4]
[341545066,1730971842523,-500.0,0.0003041,4]
[341545067,1730971842533,-715.98,0.0003041,4]
[341545068,1730971842542,-500.0,0.0003041,4]
[341545069,1730971842552,-1442.84,0.0003041,4]
[341545070,1730971842561,-500.0,0.0003041,4]
[341545071,1730971842570,-1481.62,0.0003041,4]
[341545072,1730971842580,-500.0,0.0003041,4]
[341545073,1730971842589,-3931.84,0.0003041,4]
[341545074,1730971842598,-906.26,0.0003041,4]
[341545075,1730971842608,-500.0,0.0003041,4]
[341545076,1730971842617,-500.0,0.0003041,4]
[341545077,1730971842626,-500.0,0.0003041,4]
[341545078,1730971842636,-1109.03,0.0003041,4]
[341545079,1730971842645,-2571.6,0.0003041,4]
[341545081,1730971842654,-2121.99,0.0003041,4]
[341545082,1730971842663,-500.0,0.0003041,4]
[341545083,1730971842672,-716.8,0.0003041,4]
[341545084,1730971842681,-1370.97,0.0003041,4]
[341545085,1730971842690,-500.0,0.0003041,4]
[341545086,1730971842699,-2517.37,0.0003041,4]
[341545087,1730971842708,-500.0,0.0003041,4]
[341545088,1730971842717,-1898.75,0.0003041,4]
[341545089,1730971842726,-1359.84,0.0003041,4]
[341545090,1730971842735,-1024.49,0.0003041,4]
[341545091,1730971842744,-779.2,0.0003041,4]
[341545092,1730971842753,-623.74,0.0003041,4]
[341545093,1730971842762,-1926.13,0.0003041,4]
[341545094,1730971842771,-1519.1,0.0003041,4]
[341545095,1730971842780,-500.0,0.0003041,4]
[341545096,1730971842789,-500.0,0.0003041,4]
[341545097,1730971842798,-1023.01,0.0003041,4]
[341545098,1730971842807,-1545.71,0.0003041,4]
[341545099,1730971842816,-500.0,0.0003041,4]
[341545100,1730971842825,-500.0,0.0003041,4]
[341545101,1730971842834,-1040.8,0.0003041,4]
[341545102,1730971842843,-500.0,0.0003041,4]
[341545103,1730971842852,-1208.28,0.0003041,4]
[341545104,1730971842861,-500.0,0.0003041,4]
[341545105,1730971842871,-500.0,0.0003041,4]
[341545106,1730971842880,-500.0,0.0003041,4]
[341545107,1730971842889,-399.21851167,0.0003041,4]
[341545110,1730971843267,-100.78148833,0.0003041,4]
[341545111,1730971843277,-171.66135274,0.0003041,4]
[341545112,1730971843410,-1149.34864726,0.0003041,4]
[341545114,1730971843419,-628.35,0.0003041,4]
[341545115,1730971843429,-1057.97,0.0003041,4]
[341545117,1730971843438,-1062.95,0.0003041,4]
[341545119,1730971843447,-1662.86,0.0003041,4]
[341545121,1730971843457,-1216.5,0.0003041,4]
[341545123,1730971843466,-505.75,0.0003041,4]
[341545125,1730971843476,-500.0,0.0003041,4]
[341545127,1730971843485,-500.0,0.0003041,4]
[341545129,1730971843495,-500.0,0.0003041,4]
[341545131,1730971843504,-500.0,0.0003041,4]
[341545132,1730971843514,-715.13,0.0003041,4]
[341545134,1730971843523,-745.91,0.0003041,4]
[341545136,1730971843533,-500.0,0.0003041,4]
[341545138,1730971843543,-500.0,0.0003041,4]
[341545140,1730971843552,-500.0,0.0003041,4]
[341545142,1730971843562,-500.0,0.0003041,4]
[341545143,1730971843571,-500.0,0.0003041,4]
[341545144,1730971843580,-500.0,0.0003041,4]
[341545145,1730971843589,-528.72,0.0003041,4]
[341545146,1730971843599,-755.66,0.0003041,4]
[341545147,1730971843608,-926.15,0.0003041,4]
[341545148,1730971843617,-529.09,0.0003041,4]
[341545149,1730971843626,-2885.01352497,0.0003041,4]
[341545150,1730971843649,-500.0,0.00030136,4]
[341545151,1730971843659,-586.80647503,0.0003041,4]
[341545152,1730971843668,-1428.07,0.0003041,4]
[341545153,1730971843677,-500.0,0.0003041,4]
[341545154,1730971843686,-522.11,0.0003041,4]
[341545155,1730971843695,-500.0,0.0003041,4]
[341545156,1730971843705,-915.48,0.0003041,4]
[341545157,1730971843714,-1440.39,0.0003041,4]
[341545158,1730971843723,-500.0,0.0003041,4]
[341545159,1730971843732,-500.0,0.0003041,4]
[341545160,1730971843742,-500.0,0.0003041,4]
[341545161,1730971843751,-500.0,0.0003041,4]
[341545162,1730971843760,-1102.17,0.0003041,4]
[341545163,1730971843769,-2240.21,0.0003041,4]
[341545164,1730971843779,-500.0,0.0003041,4]
[341545165,1730971843788,-500.0,0.0003041,4]
[341545166,1730971843797,-500.0,0.0003041,4]
[341545167,1730971843806,-476.02001585,0.0003041,4]
[341545168,1730971843816,-859.24,0.0003041,4]
[341545169,1730971843825,-1449.86,0.0003041,4]
[341545170,1730971843834,-500.0,0.0003041,4]
[341545171,1730971843843,-1375.44,0.0003041,4]
[341545172,1730971843852,-500.0,0.0003041,4]
[341545173,1730971843862,-641.32,0.0003041,2]
[341545174,1730971843871,-500.0,0.0003041,4]
[341545175,1730971843880,-1430.05,0.0003041,4]
[341545176,1730971843890,-500.0,0.0003041,4]
[341545177,1730971843899,-2283.68,0.0003041,4]
[341545178,1730971843909,-1067.89,0.0003041,4]
[341545179,1730971843919,-1567.46,0.0003041,4]
[341545180,1730971843928,-500.0,0.0003041,4]
[341545181,1730971843937,-500.0,0.0003041,4]
[341545182,1730971843949,-500.0,0.0003041,4]
[341545183,1730971843958,-1206.14,0.0003041,4]
[341545184,1730971843968,-4113.83,0.0003041,4]
[341545185,1730971843978,-500.0,0.0003041,4]
[341545186,1730971843988,-500.0,0.0003041,4]
[341545187,1730971843998,-852.05,0.0003041,4]
[341545188,1730971844008,-500.0,0.0003041,4]
[341545189,1730971844018,-500.0,0.0003041,4]
[341545190,1730971844027,-1025.48,0.0003041,4]
[341545191,1730971844037,-1466.07,0.0003041,4]
[341545192,1730971844047,-1429.97,0.0003041,4]
[341545193,1730971844057,-500.0,0.0003041,4]
[341545194,1730971844067,-4507.6155603,0.00030599,15]
[341545195,1730971844077,-1920.29,0.000306,2]
[341545196,1730971844087,-209.14,0.00030662,2]
[341545197,1730971844097,-448.10549089,0.00030675,4]
[341545198,1730971845410,-275.20569771,0.0002986,2]
[341545205,1730971845851,-407.65130229,0.0002986,2]
[341545206,1730971845861,-293.10396826,0.00030136,4]
[341545207,1730971845871,-500.0,0.0003041,4]
[341545208,1730971845882,-51.89450911,0.00030675,4]
[341545209,1730971845892,-404.99221146,0.00030683,4]
[341545210,1730971845904,-95.00778854,0.00030683,4]
[341545211,1730971845915,-500.0,0.00030683,4]
[341545212,1730971845925,-500.0,0.00030683,4]
[341545213,1730971845935,-500.0,0.00030683,4]
[341545214,1730971845946,-679.62,0.00030684,4]
[341545215,1730971845956,-500.0,0.00030684,4]
[341545216,1730971845966,-500.0,0.00030684,4]
[341545217,1730971845976,-242.84614313,0.00030684,4]
[341545218,1730971845991,-257.15385687,0.00030684,4]
[341545219,1730971846001,-25.20614313,0.00030684,4]
[341545220,1730971846014,-649.68385687,0.00030684,4]
[341545221,1730971846025,-490.53822506,0.00030684,4]
[341545222,1730971846038,-9.46177494,0.00030684,4]
[341545223,1730971846048,-415.73774248,0.00030684,4]
[341545224,1730971846058,-568.56,0.00030684,4]
[341545225,1730971846069,-945.04,0.00030684,4]
[341545226,1730971846079,-500.0,0.00030684,4]
[341545227,1730971846089,-500.0,0.00030684,4]
[341545228,1730971846099,-252.20046258,0.00030684,4]
[341545230,1730971846311,-502.58298695,0.00030684,4]
[341545231,1730971847095,-500.0,0.00030135,2]
[341545232,1730971847105,-341.62133144,0.00030135,2]
[341545233,1730971847115,-500.0,0.00030135,2]
[341545234,1730971847125,-500.0,0.00030135,2]
[341545235,1730971847134,-500.0,0.00030136,4]
[341545236,1730971847144,-746.85,0.00030136,4]
[341545237,1730971847154,-305.41616786,0.0003041,4]
[341545238,1730971847170,-441.43383214,0.0003041,4]
[341545239,1730971847180,-13.36655047,0.00030684,4]
[341545240,1730971847190,-500.0,0.00030684,4]
[341545241,1730971847200,-500.0,0.00030684,4]
[341545242,1730971847211,-500.0,0.00030684,4]
[341545243,1730971847220,-1095.88,0.00030684,4]
[341545244,1730971847230,-500.0,0.00030684,4]
[341545245,1730971847240,-784.42,0.00030684,4]
[341545246,1730971847251,-500.0,0.00030684,4]
[341545247,1730971847261,-500.0,0.00030684,4]
[341545248,1730971847271,-504.66,0.00030684,4]
[341545249,1730971847280,-500.0,0.00030684,4]
[341545250,1730971847289,-798.5,0.00030684,4]
[341545251,1730971847299,-896.45,0.00030684,4]
[341545252,1730971847309,-500.0,0.00030684,4]
[341545253,1730971847318,-500.0,0.00030684,4]
[341545254,1730971847327,-1188.14,0.00030684,4]
[341545255,1730971847337,-500.0,0.00030684,4]
[341545256,1730971847347,-500.0,0.00030684,4]
[341545257,1730971847357,-1411.5,0.00030684,4]
[341545258,1730971847368,-1015.03,0.00030684,4]
[341545259,1730971847378,-500.0,0.00030684,4]
[341545260,1730971847387,-540.54,0.00030684,4]
[341545261,1730971847398,-500.0,0.00030684,4]
[341545262,1730971847408,-500.0,0.00030684,4]
[341545263,1730971847418,-1089.99,0.00030684,4]
[341545264,1730971847428,-500.0,0.00030684,4]
[341545265,1730971847438,-795.62,0.00030684,4]
[341545266,1730971847448,-624.92,0.00030684,4]
[341545267,1730971847458,-390.73080892,0.00030684,4]
[341545268,1730971847467,-690.8,0.00030684,4]
[341545269,1730971847477,-815.48,0.00030684,4]
[341545270,1730971847487,-500.0,0.00030684,4]
[341545271,1730971847497,-894.5,0.00030684,4]
[341545272,1730971847507,-500.0,0.00030684,4]
[341545273,1730971847518,-985.68,0.00030684,4]
[341545274,1730971847531,-500.0,0.00030684,4]
[341545275,1730971847541,-500.0,0.00030684,4]
[341545276,1730971847551,-624.76,0.00030684,4]
[341545277,1730971847560,-500.0,0.00030684,4]
[341545278,1730971847571,-500.0,0.00030684,4]
[341545279,1730971847580,-804.15,0.00030684,4]
[341545280,1730971847591,-500.0,0.00030684,4]
[341545281,1730971847600,-500.0,0.00030684,4]
[341545282,1730971847610,-1261.85,0.00030684,4]
[341545283,1730971847620,-500.0,0.00030684,4]
[341545284,1730971847630,-502.79,0.00030684,4]
[341545285,1730971847639,-500.0,0.00030684,4]
[341545286,1730971847648,-539.07,0.00030684,4]
[341545287,1730971847657,-593.89,0.00030684,4]
[341545288,1730971847667,-990.34,0.00030684,4]
[341545289,1730971847676,-1371.24,0.00030684,4]
[341545290,1730971847686,-500.0,0.00030684,4]
[341545291,1730971847696,-1090.4,0.00030684,4]
[341545292,1730971847705,-500.0,0.00030684,4]
[341545293,1730971847714,-500.0,0.00030684,4]
[341545294,1730971847724,-531.82,0.00030684,4]
[341545295,1730971847735,-500.0,0.00030684,4]
[341545296,1730971847744,-504.66,0.00030684,4]
[341545297,1730971847754,-500.0,0.00030684,4]
[341545298,1730971847763,-512.79,0.00030684,4]
[341545299,1730971847774,-511.07,0.00030684,4]
[341545300,1730971847783,-965.87,0.00030684,4]
[341545301,1730971847793,-1348.18,0.00030684,4]
[341545302,1730971847802,-808.39,0.00030684,4]
[341545303,1730971847811,-500.0,0.00030684,4]
[341545304,1730971847821,-500.0,0.00030684,4]
[341545305,1730971847830,-500.0,0.00030684,4]
[341545306,1730971847839,-510.76,0.00030684,4]
[341545307,1730971847849,-976.66,0.00030684,4]
[341545308,1730971847858,-1081.92,0.00030684,4]
[341545309,1730971847867,-500.0,0.00030684,4]
[341545310,1730971847876,-500.0,0.00030684,4]
[341545311,1730971847886,-500.0,0.00030684,4]
[341545312,1730971847895,-1800.22,0.00030684,4]
[341545313,1730971847905,-500.0,0.00030684,4]
[341545314,1730971847914,-500.0,0.00030684,4]
[341545315,1730971847923,-500.0,0.00030684,4]
[341545316,1730971847933,-1322.69,0.00030684,4]
[341545317,1730971847942,-1039.05,0.00030684,4]
[341545318,1730971847951,-500.0,0.00030684,4]
[341545319,1730971847960,-500.0,0.00030684,4]
[341545320,1730971847970,-982.46,0.00030684,4]
[341545321,1730971847979,-500.0,0.00030684,4]
[341545322,1730971847989,-500.0,0.00030684,4]
[341545323,1730971847998,-500.0,0.00030684,4]
[341545324,1730971848007,-500.0,0.00030684,4]
[341545325,1730971848087,-548.86,0.00030684,4]
[341545326,1730971848096,-500.0,0.00030684,4]
[341545327,1730971848105,-500.0,0.00030684,4]
[341545328,1730971848115,-500.0,0.00030684,4]
[341545329,1730971848125,-500.0,0.00030684,4]
[341545330,1730971848134,-2000.0,0.00030684,4]
[341545331,1730971848143,-1186.66,0.00030684,4]
[341545332,1730971848153,-500.0,0.00030684,4]
[341545333,1730971848163,-500.0,0.00030684,4]
[341545334,1730971848173,-843.04,0.00030684,4]
[341545335,1730971848183,-500.0,0.00030684,4]
[341545336,1730971848193,-500.0,0.00030684,4]
[341545337,1730971848203,-756.82,0.00030684,4]
[341545338,1730971848212,-500.0,0.00030684,4]
[341545339,1730971848221,-500.0,0.00030684,4]
[341545340,1730971848231,-500.0,0.00030684,4]
[341545341,1730971848242,-622.93,0.00030684,4]
[341545342,1730971848252,-532.92456553,0.00030684,4]
[341545343,1730971848262,-879.48,0.00030684,4]
[341545344,1730971848273,-500.0,0.00030684,4]
[341545345,1730971848282,-500.0,0.00030684,4]
[341545346,1730971848293,-1206.59,0.00030684,4]
[341545347,1730971848303,-500.0,0.00030684,4]
[341545348,1730971848314,-193.640691,0.00030684,4]
[341545349,1730971848323,-500.0,0.00030684,4]
[341545350,1730971848333,-500.0,0.00030684,4]
[341545351,1730971848343,-500.0,0.00030684,4]
[341545352,1730971848353,-500.0,0.00030684,4]
[341545353,1730971848363,-500.0,0.00030684,4]
[341545354,1730971848373,-244.88326319,0.00030684,4]
[341545355,1730971848383,-500.0,0.00030684,4]
[341545356,1730971848393,-500.0,0.00030684,4]
[341545357,1730971848403,-500.0,0.00030684,4]
[341545358,1730971848413,-500.0,0.00030684,4]
[341545359,1730971848423,-320.04,0.00030684,4]
[341545360,1730971848433,-1010.04,0.00030684,4]
[341545361,1730971848443,-827.43,0.00030684,4]
[341545362,1730971848453,-867.8,0.00030684,4]
[341545363,1730971848462,-500.0,0.00030684,4]
[341545364,1730971848472,-828.06,0.00030684,4]
[341545365,1730971848482,-1624.25,0.00030684,4]
[341545366,1730971848492,-922.89,0.00030684,4]
[341545367,1730971848503,-36.02642332,0.00030684,4]
[341545368,1730971848521,-463.97357668,0.00030684,4]
[341545369,1730971848531,-530.13,0.00030684,4]
[341545370,1730971848542,-500.0,0.00030684,4]
[341545371,1730971848552,-1227.32,0.00030684,4]
[341545372,1730971848562,-500.0,0.00030684,4]
[341545373,1730971848573,-965.73,0.00030684,4]
[341545374,1730971848583,-503.13,0.00030684,4]
[341545375,1730971848593,-623.16103219,0.00030684,4]
[341545376,1730971848602,-1166.4,0.00030684,4]
[341545377,1730971848612,-188.7526,0.00030684,4]
[341545378,1730971848622,-500.0,0.00030684,4]
[341545379,1730971848631,-500.0,0.00030684,4]
[341545380,1730971848641,-500.0,0.00030684,4]
[341545381,1730971848651,-508.85,0.00030684,4]
[341545382,1730971848661,-633.65,0.00030684,4]
[341545383,1730971848670,-516.44279113,0.00030684,4]
[341545384,1730971848739,-40.54984784,0.00030684,4]
[341545385,1730971849008,150.0,0.00018123,2]
[341545386,1730971849190,-500.0,0.00030136,4]
[341545387,1730971849200,-165.7252378,0.0003041,4]
[341545388,1730971849212,-334.2747622,0.0003041,4]
[341545389,1730971849222,-532.50736103,0.00030684,4]
[341545390,1730971849232,-500.0,0.00030684,4]
[341545391,1730971849242,-838.65,0.00030684,4]
[341545392,1730971849252,-69.82383665,0.00030684,4]
[341545393,1730971849263,-430.17616335,0.00030684,4]
[341545394,1730971849273,-620.16375823,0.00030684,4]
[341545395,1730971849285,-130.29624177,0.00030684,4]
[341545396,1730971849295,-500.0,0.00030684,4]
[341545397,1730971849306,-500.0,0.00030684,4]
[341545398,1730971849316,-590.87,0.00030684,4]
[341545399,1730971849326,-500.0,0.00030684,4]
[341545400,1730971849336,-198.62205823,0.00030684,4]
[341545401,1730971849348,-1287.05794177,0.00030684,4]
[341545402,1730971849358,-500.0,0.00030684,4]
[341545403,1730971849368,-515.4,0.00030684,4]
[341545404,1730971849378,-270.04205316,0.00030684,4]
[341545405,1730971849398,-656.21794684,0.00030684,4]
[341545406,1730971849408,-500.0,0.00030684,4]
[341545407,1730971849418,-346.09134601,0.00030684,4]
[341545408,1730971849432,-305.04865399,0.00030684,4]
[341545409,1730971849442,-547.68,0.00030684,4]
[341545410,1730971849452,-969.02,0.00030684,4]
[341545411,1730971849462,-500.0,0.00030684,4]
[341545412,1730971849472,-500.0,0.00030684,4]
[341545413,1730971849481,-532.98,0.00030684,4]
[341545414,1730971849492,-2419.65,0.00030684,4]
[341545415,1730971849502,-1156.03,0.00030684,4]
[341545416,1730971849513,-500.0,0.00030684,4]
[341545417,1730971849527,-500.0,0.00030684,4]
[341545418,1730971849537,-500.0,0.00030684,4]
[341545419,1730971849546,-523.52,0.00030684,4]
[341545420,1730971849557,-662.77,0.00030684,4]
[341545421,1730971849567,-1006.67,0.00030684,4]
[341545422,1730971849576,-500.0,0.00030684,4]
[341545423,1730971849587,-500.0,0.00030684,4]
[341545424,1730971849597,-500.0,0.00030684,4]
[341545425,1730971849606,-500.0,0.00030684,4]
[341545426,1730971849616,-511.96,0.00030684,4]
[341545427,1730971849626,-500.0,0.00030684,4]
[341545428,1730971849637,-802.8,0.00030684,4]
[341545429,1730971849648,-516.91,0.00030684,4]